fUST/lending_fUST_20260217
["ID","MTS","AMOUNT","RATE_DAILY","PERIOD"]
[405795391,1771318050963,-500.0,0.00014836,2]
[405795392,1771318050984,-500.0,0.00014836,2]
[405795393,1771318051006,-500.0,0.00014836,2]
[405795394,1771318051027,-500.0,0.00014836,2]
[405795395,1771318051049,-500.0,0.00014836,2]
[405795396,1771318051069,-500.0,0.00014836,2]
[405795397,1771318051090,-500.0,0.00014836,2]
[405795398,1771318051111,-500.0,0.00014836,2]
[405795399,1771318051134,-337.84044492,0.00014836,2]
[405795400,1771318135115,169.44,0.00014,2]
[405795401,1771318149088,-234.19670484,0.00014672,2]
[405795402,1771318156079,-63.37967516,0.00014672,2]
[405795403,1771318156099,-300.0,0.00014834,2]
[405795404,1771318156120,-219.80215799,0.00014835,2]
[405795405,1771318156139,-500.0,0.00014835,2]
[405795406,1771318156158,-200.0,0.00014835,2]
[405795407,1771318156178,-500.0,0.00014835,2]
[405795408,1771318156197,-500.0,0.00014835,2]
[405795409,1771318156217,-500.0,0.00014835,2]
[405795410,1771318156236,-500.0,0.00014835,2]
[405795411,1771318156255,-500.0,0.00014835,2]
[405795412,1771318156274,-500.0,0.00014835,2]
[405795413,1771318156296,-500.0,0.00014835,2]
[405795414,1771318156316,-500.0,0.00014835,2]
[405795415,1771318156336,-500.0,0.00014835,2]
[405795416,1771318156357,-500.0,0.00014835,2]
[405795417,1771318156378,-445.81500173,0.00014835,2]
[405795418,1771318156397,-500.0,0.00014835,2]
[405795419,1771318156416,-500.0,0.00014835,2]
[405795420,1771318156436,-259.4954325,0.00014836,2]
[405795421,1771318156454,-5226.39683794,0.00014836,2]
[405795422,1771318156472,-158.855961,0.00014838,2]
[405795423,1771318156489,-6630.77076677,0.00014838,2]
[405795424,1771318156507,-186.17380868,0.00014866,2]
[405795425,1771318157070,-272.05204979,0.00014866,2]
[405795431,1771318231978,-41.77414153,0.00014866,2]
[405795432,1771318231988,-207.93,0.000151,2]
[405795434,1771318231998,-168.0,0.00015242,2]
[405795436,1771318232009,-1618.571252,0.00015299,2]
[405795438,1771318232021,-168.0,0.00015395,2]
[405795440,1771318232033,-172.59571012,0.000156,2]
[405795441,1771318232045,-168.0,0.00015654,2]
[405795442,1771318232055,-275.48925462,0.00015695,2]
[405795443,1771318232065,-168.0,0.00015756,2]
[405795444,1771318232075,-168.0,0.00015758,2]
[405795445,1771318232086,-250.98064173,0.00015804,2]
[405795446,1771318232242,-1034.82615823,0.00015804,2]
[405795447,1771318232254,-168.0,0.00015804,2]
[405795449,1771318232265,-168.0,0.00015835,2]
[405795451,1771318232276,-294.17576819,0.00015839,2]
[405795453,1771318232288,-713.0,0.000159,2]
[405795455,1771318232298,-168.0,0.0001591,2]
[405795457,1771318232309,-168.0,0.00015934,2]
[405795459,1771318232324,-1618.571252,0.00015943,2]
[405795461,1771318232335,-440.0,0.00016032,2]
[405795464,1771318232346,-440.0,0.00016132,2]
[405795466,1771318232358,-300.0,0.00016319,2]
[405795468,1771318232368,-5393.52208796,0.0001632,2]
[405795470,1771318232379,-193.7594825,0.00016338,2]
[405795472,1771318232391,-166.894484,0.00016338,2]
[405795474,1771318232401,-550.3099105,0.00016338,2]
[405795477,1771318232412,-491.7751717,0.00016338,2]
[405795478,1771318232423,-1420.762582,0.00016338,2]
[405795480,1771318232432,-537.0699979,0.00016338,2]
[405795482,1771318232443,-31273.0193252,0.0001638,2]
[405795484,1771318232453,-500.0,0.00016438,2]
[405795487,1771318232464,-505.00195157,0.00016438,2]
[405795489,1771318232475,-573.42958726,0.00016438,2]
[405795491,1771318232486,-517.09163312,0.00016438,2]
[405795493,1771318232497,-550.82891095,0.00016438,2]
[405795495,1771318232507,-246.86597894,0.00016438,2]
[405795497,1771318232518,-500.0,0.00016438,2]
[405795499,1771318232529,-554.40710261,0.00016438,2]
[405795501,1771318232540,-515.37756348,0.00016438,2]
[405795504,1771318232556,-500.0,0.00016438,2]
[405795506,1771318232576,-504.21759334,0.00016438,2]
[405795508,1771318232590,-500.0,0.00016438,2]
[405795510,1771318232603,-500.0,0.00016438,2]
[405795512,1771318232617,-500.0,0.00016438,2]
[405795515,1771318232630,-599.24128155,0.00016438,2]
[405795516,1771318232642,-227.62107488,0.00016438,2]
[405795517,1771318232654,-564.67731294,0.00016438,2]
[405795519,1771318232667,-541.78126673,0.00016438,2]
[405795521,1771318232680,-500.0,0.00016438,2]
[405795522,1771318232692,-525.54527401,0.00016438,2]
[405795523,1771318232705,-562.28632806,0.00016438,2]
[405795524,1771318232716,-570.43831926,0.00016438,2]
[405795525,1771318232727,-3793.03038139,0.00016459,2]
[405795526,1771318232739,-9000.0,0.0001652,2]
[405795527,1771318232750,-6326.21524477,0.0001652,2]
[405795528,1771318232761,-368.29329807,0.00016521,2]
[405795529,1771318232772,-420.90662636,0.00016521,2]
[405795530,1771318232783,-198.5548493,0.00016521,2]
[405795531,1771318232795,-350.0,0.00016521,2]
[405795532,1771318232805,-350.0,0.00016521,2]
[405795533,1771318232816,-350.0,0.00016521,2]
[405795534,1771318232826,-350.0,0.00016521,2]
[405795535,1771318232837,-350.0,0.00016521,2]
[405795536,1771318232846,-350.0,0.00016521,2]
[405795537,1771318232856,-350.0,0.00016521,2]
[405795538,1771318233034,-350.0,0.00016521,2]
[405795539,1771318233048,-350.0,0.00016521,2]
[405795540,1771318233058,-350.0,0.00016521,2]
[405795541,1771318233068,-350.0,0.00016521,2]
[405795542,1771318233079,-350.0,0.00016521,2]
[405795543,1771318233089,-350.0,0.00016521,2]
[405795544,1771318233100,-350.0,0.00016521,2]
[405795545,1771318233110,-350.0,0.00016521,2]
[405795546,1771318233119,-350.0,0.00016521,2]
[405795547,1771318233129,-350.0,0.00016521,2]
[405795548,1771318233139,-350.0,0.00016521,2]
[405795549,1771318233149,-350.0,0.00016521,2]
[405795550,1771318233158,-657.00893709,0.00016521,2]
[405795551,1771318233167,-350.0,0.00016521,2]
[405795552,1771318233177,-166.0,0.00016521,2]
[405795553,1771318233187,-350.0,0.00016521,2]
[405795554,1771318233196,-153.0,0.00016521,2]
[405795555,1771318233205,-166.0,0.00016521,2]
[405795556,1771318233215,-350.0,0.00016521,2]
[405795557,1771318233226,-153.0,0.00016521,2]
[405795558,1771318233235,-166.0,0.00016521,2]
[405795559,1771318233245,-350.0,0.00016521,2]
[405795560,1771318233255,-153.0,0.00016521,2]
[405795561,1771318233265,-350.0,0.00016521,2]
[405795562,1771318233274,-166.0,0.00016521,2]
[405795563,1771318233284,-153.0,0.00016521,2]
[405795564,1771318233294,-482.41172793,0.00016521,2]
[405795565,1771318233303,-166.0,0.00016521,2]
[405795566,1771318233313,-153.0,0.00016521,2]
[405795567,1771318233326,-166.0,0.00016521,2]
[405795568,1771318233336,-153.0,0.00016521,2]
[405795569,1771318233346,-166.0,0.00016521,2]
[405795570,1771318233355,-153.0,0.00016521,2]
[405795571,1771318233366,-172.0,0.00016521,2]
[405795572,1771318233376,-153.0,0.00016521,2]
[405795573,1771318233386,-153.0,0.00016521,2]
[405795574,1771318233397,-153.0,0.00016521,2]
[405795575,1771318233406,-153.0,0.00016521,2]
[405795576,1771318233416,-153.0,0.00016521,2]
[405795577,1771318233427,-153.0,0.00016521,2]
[405795578,1771318233437,-153.0,0.00016521,2]
[405795579,1771318233447,-153.0,0.00016521,2]
[405795580,1771318233457,-153.0,0.00016521,2]
[405795581,1771318233467,-252.43694691,0.00016521,2]
[405795582,1771318233476,-153.0,0.00016521,2]
[405795583,1771318233486,-337.0,0.00016521,2]
[405795584,1771318233495,-337.0,0.00016521,2]
[405795585,1771318233504,-337.0,0.00016521,2]
[405795586,1771318233513,-337.0,0.00016521,2]
[405795587,1771318233523,-337.0,0.00016521,2]
[405795588,1771318233532,-337.0,0.00016521,2]
[405795589,1771318233541,-337.0,0.00016521,2]
[405795590,1771318233550,-337.0,0.00016521,2]
[405795591,1771318233560,-337.0,0.00016521,2]
[405795592,1771318233569,-337.0,0.00016521,2]
[405795593,1771318233579,-357.04133002,0.00016521,2]
[405795594,1771318233588,-337.0,0.00016521,2]
[405795595,1771318233597,-337.0,0.00016521,2]
[405795596,1771318233607,-337.0,0.00016521,2]
[405795597,1771318233616,-337.0,0.00016521,2]
[405795598,1771318233626,-337.0,0.00016521,2]
[405795599,1771318233635,-405.36527457,0.00016521,2]
[405795600,1771318233645,-337.0,0.00016521,2]
[405795601,1771318233655,-337.0,0.00016521,2]
[405795602,1771318233665,-337.0,0.00016521,2]
[405795603,1771318233676,-337.0,0.00016521,2]
[405795604,1771318233685,-337.0,0.00016521,2]
[405795605,1771318233694,-337.0,0.00016521,2]
[405795606,1771318233704,-337.0,0.00016521,2]
[405795607,1771318233716,-337.0,0.00016521,2]
[405795608,1771318233725,-337.0,0.00016521,2]
[405795609,1771318233734,-337.0,0.00016521,2]
[405795610,1771318233744,-337.0,0.00016521,2]
[405795611,1771318233753,-337.0,0.00016521,2]
[405795612,1771318233762,-337.0,0.00016521,2]
[405795613,1771318233771,-337.0,0.00016521,2]
[405795614,1771318233780,-337.0,0.00016521,2]
[405795615,1771318233790,-337.0,0.00016521,2]
[405795616,1771318233799,-337.0,0.00016521,2]
[405795617,1771318233808,-337.0,0.00016521,2]
[405795618,1771318233817,-337.0,0.00016521,2]
[405795619,1771318233827,-337.0,0.00016521,2]
[405795620,1771318233837,-337.0,0.00016521,2]
[405795621,1771318233846,-337.0,0.00016521,2]
[405795622,1771318233855,-337.0,0.00016521,2]
[405795623,1771318233864,-337.0,0.00016521,2]
[405795624,1771318233874,-337.0,0.00016521,2]
[405795625,1771318233883,-337.0,0.00016521,2]
[405795626,1771318233892,-337.0,0.00016521,2]
[405795627,1771318233902,-337.0,0.00016521,2]
[405795628,1771318233911,-337.0,0.00016521,2]
[405795629,1771318233920,-337.0,0.00016521,2]
[405795630,1771318233931,-337.0,0.00016521,2]
[405795631,1771318233940,-337.0,0.00016521,2]
[405795632,1771318233950,-337.0,0.00016521,2]
[405795633,1771318233959,-337.0,0.00016521,2]
[405795634,1771318233968,-337.0,0.00016521,2]
[405795635,1771318233977,-337.0,0.00016521,2]
[405795636,1771318233986,-394.58992134,0.00016521,2]
[405795637,1771318233995,-337.0,0.00016521,2]
[405795638,1771318234005,-178.0,0.00016521,2]
[405795639,1771318234015,-178.0,0.00016521,2]
[405795640,1771318234025,-178.06914692,0.00016521,2]
[405795641,1771318234039,-350.0,0.00016521,2]
[405795642,1771318234049,-630.0,0.00016521,2]
[405795643,1771318234060,-350.0,0.00016521,2]
[405795644,1771318234070,-630.0,0.00016521,2]
[405795645,1771318234079,-350.0,0.00016521,2]
[405795646,1771318234088,-630.0,0.00016521,2]
[405795647,1771318234097,-350.0,0.00016521,2]
[405795648,1771318234107,-630.0,0.00016521,2]
[405795649,1771318234117,-350.0,0.00016521,2]
[405795650,1771318234126,-630.0,0.00016521,2]
[405795651,1771318234136,-350.0,0.00016521,2]
[405795652,1771318234148,-630.0,0.00016521,2]
[405795653,1771318234158,-350.0,0.00016521,2]
[405795654,1771318234167,-630.0,0.00016521,2]
[405795655,1771318234180,-350.0,0.00016521,2]
[405795656,1771318234190,-350.0,0.00016521,2]
[405795657,1771318234200,-630.0,0.00016521,2]
[405795658,1771318234209,-630.0,0.00016521,2]
[405795659,1771318234219,-350.0,0.00016521,2]
[405795660,1771318234228,-350.0,0.00016521,2]
[405795661,1771318234237,-708.59862202,0.00016521,2]
[405795662,1771318234246,-350.0,0.00016521,2]
[405795663,1771318234255,-630.0,0.00016521,2]
[405795664,1771318234265,-350.0,0.00016521,2]
[405795665,1771318234274,-630.0,0.00016521,2]
[405795666,1771318234283,-630.0,0.00016521,2]
[405795667,1771318234293,-350.0,0.00016521,2]
[405795668,1771318234303,-630.0,0.00016521,2]
[405795669,1771318234312,-350.0,0.00016521,2]
[405795670,1771318234326,-630.0,0.00016521,2]
[405795671,1771318234335,-350.0,0.00016521,2]
[405795672,1771318234345,-630.0,0.00016521,2]
[405795673,1771318234355,-350.0,0.00016521,2]
[405795674,1771318234366,-630.0,0.00016521,2]
[405795675,1771318234375,-350.0,0.00016521,2]
[405795676,1771318234385,-630.0,0.00016521,2]
[405795677,1771318234397,-350.0,0.00016521,2]
[405795678,1771318234406,-630.0,0.00016521,2]
[405795679,1771318234416,-350.0,0.00016521,2]
[405795680,1771318234427,-630.0,0.00016521,2]
[405795681,1771318234436,-350.0,0.00016521,2]
[405795682,1771318234445,-630.0,0.00016521,2]
[405795683,1771318234455,-350.0,0.00016521,2]
[405795684,1771318234465,-350.0,0.00016521,2]
[405795685,1771318234474,-350.0,0.00016521,2]
[405795686,1771318234483,-350.0,0.00016521,2]
[405795687,1771318234493,-956.0,0.00016529,2]
[405795688,1771318234502,-409.0,0.0001654,2]
[405795689,1771318234511,-1618.571252,0.00016587,2]
[405795690,1771318234520,-956.0,0.00016594,2]
[405795691,1771318234530,-440.0,0.00016671,2]
[405795692,1771318234540,-500.0,0.00016712,2]
[405795693,1771318234549,-176.34616018,0.00016712,2]
[405795694,1771318234559,-500.0,0.00016712,2]
[405795695,1771318234568,-500.0,0.00016712,2]
[405795696,1771318234577,-500.0,0.00016712,2]
[405795697,1771318234587,-428.09,0.00016713,2]
[405795698,1771318234596,-1381.0,0.00016812,2]
[405795699,1771318234606,-2172.0,0.00016812,2]
[405795700,1771318234616,-635.0,0.00016812,2]
[405795701,1771318234625,-956.0,0.00016813,2]
[405795702,1771318234635,-956.0,0.0001683,2]
[405795703,1771318234645,-306.20461035,0.00016836,2]
[405795704,1771318234655,-440.0,0.00016853,2]
[405795705,1771318234664,-713.0,0.00016859,2]
[405795706,1771318234674,-400.0,0.0001686,2]
[405795707,1771318234683,-784.0,0.000169,2]
[405795708,1771318234692,-287.63395148,0.00016901,2]
[405795709,1771318234702,-153.0,0.00016967,2]
[405795710,1771318234711,-442.64610573,0.00016967,2]
[405795711,1771318234721,-630.0,0.00016967,2]
[405795712,1771318234730,-630.0,0.00016967,2]
[405795713,1771318234740,-630.0,0.00016967,2]
[405795714,1771318234749,-630.0,0.00016967,2]
[405795715,1771318234759,-630.0,0.00016967,2]
[405795716,1771318234768,-630.0,0.00016967,2]
[405795717,1771318234777,-630.0,0.00016967,2]
[405795718,1771318234787,-630.0,0.00016967,2]
[405795719,1771318234796,-630.0,0.00016967,2]
[405795720,1771318234807,-630.0,0.00016967,2]
[405795721,1771318234816,-630.0,0.00016967,2]
[405795722,1771318234826,-630.0,0.00016967,2]
[405795723,1771318234835,-630.0,0.00016967,2]
[405795724,1771318234845,-630.0,0.00016967,2]
[405795725,1771318234854,-151.819,0.00016972,2]
[405795726,1771318234863,-152.034,0.00016972,2]
[405795727,1771318234873,-150.572,0.00016972,2]
[405795728,1771318234882,-250.0,0.00016972,2]
[405795729,1771318234892,-440.0,0.00016977,2]
[405795730,1771318234901,-500.0,0.00016986,2]
[405795731,1771318234911,-500.0,0.00016986,2]
[405795732,1771318234920,-500.0,0.00016986,2]
[405795733,1771318234931,-500.0,0.00016986,2]
[405795734,1771318234941,-489.34,0.0001699,3]
[405795735,1771318234951,-244.67,0.0001699,3]
[405795736,1771318234960,-734.03,0.0001699,3]
[405795737,1771318234970,-8614.35352487,0.00017,2]
[405795738,1771318234979,-160.0,0.00017019,3]
[405795739,1771318234989,-729.65749423,0.00017047,2]
[405795740,1771318234998,-956.0,0.00017051,2]
[405795741,1771318235009,-445.43223248,0.00017149,2]
[405795742,1771318235018,-184.01025894,0.00017159,2]
[405795743,1771318235028,-721.0,0.0001718,2]
[405795744,1771318235037,-151.0,0.000172,2]
[405795745,1771318235047,-1618.571252,0.00017231,2]
[405795746,1771318235056,-560.0,0.00017255,2]
[405795747,1771318235065,-500.0,0.0001726,2]
[405795748,1771318235075,-500.0,0.0001726,2]
[405795749,1771318235084,-569.94155957,0.0001726,2]
[405795750,1771318235093,-500.0,0.0001726,2]
[405795751,1771318235104,-151.0,0.0001726,2]
[405795752,1771318235113,-151.0,0.0001726,2]
[405795753,1771318235122,-151.0,0.0001726,2]
[405795754,1771318235131,-157.567904,0.0001726,2]
[405795755,1771318235140,-151.0,0.000173,2]
[405795756,1771318235151,-3918.42037692,0.00017321,2]
[405795877,1771318240238,-500.0,0.00016031,2]
[405795878,1771318240249,-271.75722241,0.00016031,2]
[405795879,1771318240259,-323.40703647,0.00016521,2]
[405795880,1771318240292,-26.59296353,0.00016521,2]
[405795881,1771318240302,-1144.88270167,0.00017321,2]
[405795891,1771318245959,-1297.16887863,0.00017084,2]
[405795892,1771318245970,-649.99813563,0.00017321,2]
[405795893,1771318246013,-16138.55303395,0.00017321,2]
[405795894,1771318246022,-341.92,0.00017325,2]
[405795895,1771318246032,-3259.06202065,0.00017325,2]
[405795896,1771318246043,-600.0,0.00017339,2]
[405795897,1771318246052,-168.0,0.00017377,2]
[405795898,1771318246061,-168.0,0.0001739,2]
[405795899,1771318246071,-151.0,0.000174,2]
[405795900,1771318246080,-567.84601068,0.000174,2]
[405795901,1771318246090,-9169.98159518,0.00017499,2]
[405795902,1771318246099,-151.0,0.000175,2]
[405795903,1771318246108,-343.52207768,0.000175,2]
[405795904,1771318246117,-10436.18800622,0.000175,2]
[405795905,1771318575078,500.0,0.00013699,2]
[405795908,1771318749231,533.9788479,0.00014,2]
[405795909,1771318765137,474.0770591,0.00014,2]
[405795912,1771318805083,235.33565321,0.00013699,2]
[405795913,1771318805321,208.75,0.0001,2]
[405795914,1771318805850,208.75,0.0001,2]
[405795915,1771318806502,208.75,0.0001,2]
[405795916,1771318807049,208.75,0.000101,2]
[405795917,1771318807742,208.75,0.000101,2]
[405795918,1771318808438,208.75,0.000101,2]
[405795919,1771318809111,208.75,0.000101,2]
[405795920,1771318809879,208.75,0.000101,2]
[405795921,1771318810502,208.75,0.000102,2]
[405795922,1771318811231,208.75,0.000102,2]
[405795923,1771318811920,500.0,0.00013699,2]
[405795924,1771318812326,208.75,0.000102,2]
[405795925,1771318813022,208.75,0.000102,2]
[405795926,1771318813564,208.75,0.000102,2]
[405795927,1771318814246,208.75,0.000103,2]
[405795928,1771318814883,208.75,0.000103,2]
[405795929,1771318815573,208.75,0.000103,2]
[405795930,1771318815991,500.0,0.00013699,2]
[405795931,1771318816432,208.75,0.000103,2]
[405795932,1771318816847,208.75,0.000103,2]
[405795933,1771318817539,208.75,0.000104,2]
[405795934,1771318818254,207.94850356,0.000104,2]
[405795935,1771318818280,0.80149644,0.000104,2]
[405795936,1771318818906,208.75,0.000104,2]
[405795937,1771318819575,208.75,0.000104,2]
[405795938,1771318820280,208.75,0.000104,2]
[405795939,1771318820949,208.75,0.000105,2]
[405795940,1771318821492,208.75,0.000105,2]
[405795941,1771318822182,208.75,0.000105,2]
[405795942,1771318822750,208.75,0.000105,2]
[405795943,1771318823412,208.75,0.000106,2]
[405795944,1771318824076,208.75,0.000106,2]
[405795945,1771318824724,208.75,0.000106,2]
[405795946,1771318825291,208.75,0.000106,2]
[405795947,1771318826226,208.75,0.000106,2]
[405795948,1771318827247,208.75,0.000107,2]
[405795949,1771318827891,208.75,0.000107,2]
[405795951,1771318828406,208.75,0.000107,2]
[405795952,1771318829050,208.75,0.000107,2]
[405795953,1771318829714,208.75,0.000107,2]
[405795954,1771318830368,208.75,0.000108,2]
[405795955,1771318831032,208.75,0.000108,2]
[405795956,1771318831559,208.75,0.000108,2]
[405795957,1771318832554,208.75,0.000108,2]
[405795958,1771318833087,208.75,0.000108,2]
[405795960,1771318833772,208.75,0.000109,2]
[405795961,1771318834325,208.75,0.000109,2]
[405795962,1771318834862,208.75,0.000109,2]
[405795963,1771318835397,208.75,0.000109,2]
[405795964,1771318836035,208.75,0.000109,2]
[405795965,1771318836722,208.75,0.00011,2]
[405795966,1771318837348,208.75,0.00011,2]
[405795967,1771318838020,208.75,0.00011,2]
[405795969,1771318907386,-244.24,0.00014247,2]
[405795970,1771318907417,-201.38404552,0.00014247,2]
[405795971,1771318907445,-166.26798775,0.00014247,2]
[405795972,1771318907474,-624.0,0.00014247,2]
[405795973,1771318907501,-251.18143164,0.000147,2]
[405795974,1771318907530,-502.23497652,0.00015154,2]
[405795975,1771318907558,-500.0,0.00015298,2]
[405795976,1771318907588,-1200.0,0.00015484,2]
[405795977,1771318936671,-300.0,0.00015485,2]
[405795978,1771318936697,-294.0,0.00015485,2]
[405795979,1771318936724,-300.0,0.00015485,2]
[405795980,1771318936751,-300.0,0.00015485,2]
[405795981,1771318936779,-118.97745749,0.00015485,2]
[405795982,1771318966315,-181.02254251,0.00015485,2]
[405795983,1771319107272,500.0,0.00013273,2]
[405795984,1771319107331,1000.0,0.00013821,2]
[405795985,1771319110722,500.0,0.00013273,2]
[405795986,1771319110759,1000.0,0.00013821,2]
[405795987,1771319133100,-614.36888217,0.00014225,2]
[405795988,1771319196692,5000.0,0.00014,2]
[405795989,1771319211993,2925.50161944,0.00014,2]
[405795990,1771319220180,5000.0,0.00014,2]
[405795991,1771319243001,5000.0,0.00014,2]
[405795992,1771319249076,-1362.94372765,0.00014225,2]
[405795993,1771319264954,1146.17119159,0.00014,2]
[405795994,1771319316078,470.1943726,0.00014,2]
[405795995,1771319345087,-543.0415231,0.00014091,2]
[405795996,1771319345108,-272.58849678,0.00014119,2]
[405795997,1771319345128,-259.82938132,0.00014146,2]
[405795998,1771319345150,-1506.35791202,0.00014368,2]
[405795999,1771319345168,-1503.11727811,0.00014368,2]
[405796000,1771319345189,-300.0,0.00014551,2]
[405796001,1771319345209,-300.0,0.00014551,2]
[405796002,1771319345230,-1457.1838342,0.00014552,2]
[405796003,1771319345258,-1479.98807283,0.00014552,2]
[405796004,1771319351073,-271.11106392,0.00014552,2]
[405796005,1771319406345,435.47,0.0001,2]
[405796006,1771319407407,435.47,0.0001,2]
[405796007,1771319408081,435.47,0.0001,2]
[405796008,1771319408740,435.47,0.000101,2]
[405796009,1771319409472,435.47,0.000101,2]
[405796010,1771319410632,435.47,0.000101,2]
[405796011,1771319411172,435.47,0.000101,2]
[405796012,1771319411861,435.47,0.000101,2]
[405796013,1771319412526,435.47,0.000102,2]
[405796014,1771319413101,435.47,0.000102,2]
[405796015,1771319413660,435.47,0.000102,2]
[405796016,1771319414339,435.47,0.000102,2]
[405796017,1771319415041,435.47,0.000102,2]
[405796018,1771319415750,435.47,0.000103,2]
[405796019,1771319416425,435.47,0.000103,2]
[405796020,1771319416985,435.47,0.000103,2]
[405796021,1771319417565,435.47,0.000103,2]
[405796022,1771319418685,435.47,0.000103,2]
[405796023,1771319419261,435.47,0.000104,2]
[405796024,1771319419927,435.47,0.000104,2]
[405796025,1771319420572,435.47,0.000104,2]
[405796026,1771319421303,435.47,0.000104,2]
[405796027,1771319421913,435.47,0.000104,2]
[405796028,1771319422461,435.47,0.000105,2]
[405796029,1771319423041,500.0,0.00013699,2]
[405796030,1771319423646,435.47,0.000105,2]
[405796031,1771319424644,435.47,0.000105,2]
[405796032,1771319425195,435.47,0.000105,2]
[405796033,1771319425705,435.47,0.000106,2]
[405796034,1771319426400,435.47,0.000106,2]
[405796035,1771319427031,435.47,0.000106,2]
[405796036,1771319427746,435.47,0.000106,2]
[405796037,1771319428902,435.47,0.000106,2]
[405796038,1771319429546,435.47,0.000107,2]
[405796039,1771319430230,435.47,0.000107,2]
[405796040,1771319430880,435.47,0.000107,2]
[405796041,1771319431561,435.47,0.000107,2]
[405796074,1771319432200,435.47,0.000107,2]
[405796129,1771319432840,435.47,0.000108,2]
[405796130,1771319433635,435.47,0.000108,2]
[405796131,1771319434301,435.47,0.000108,2]
[405796132,1771319434997,435.47,0.000108,2]
[405796133,1771319435645,435.47,0.000108,2]
[405796134,1771319436305,435.47,0.000109,2]
[405796135,1771319436846,435.47,0.000109,2]
[405796136,1771319437596,435.47,0.000109,2]
[405796148,1771319438197,435.47,0.000109,2]
[405796149,1771319438299,-4635.58980508,0.00014451,2]
[405796150,1771319438309,-1200.0,0.0001455,2]
[405796151,1771319438319,-502.50987818,0.0001455,2]
[405796152,1771319438455,-500.0,0.00014551,2]
[405796153,1771319438465,-500.0,0.00014551,2]
[405796154,1771319438475,-500.0,0.00014551,2]
[405796155,1771319438484,-649.47807233,0.00014551,2]
[405796156,1771319438493,-500.0,0.00014551,2]
[405796157,1771319438503,-500.0,0.00014551,2]
[405796158,1771319438513,-500.0,0.00014551,2]
[405796159,1771319438522,-500.0,0.00014551,2]
[405796160,1771319438532,-500.0,0.00014551,2]
[405796161,1771319438542,-500.0,0.00014551,2]
[405796162,1771319438552,-500.0,0.00014551,2]
[405796163,1771319438561,-500.0,0.00014551,2]
[405796164,1771319438571,-500.0,0.00014551,2]
[405796165,1771319438581,-500.0,0.00014551,2]
[405796166,1771319438591,-500.0,0.00014551,2]
[405796167,1771319438600,-454.32428964,0.00014551,2]
[405796168,1771319438610,-500.0,0.00014551,2]
[405796169,1771319438619,-500.0,0.00014551,2]
[405796170,1771319438628,-500.0,0.00014551,2]